bitfinex/quotes_BTCUSD_20251230
["timestamp","ask_amount","ask_price","bid_price","bid_amount"]
[1767106213953,0.01148,88430.0,88385.0,1.40386]
[1767106214156,0.01148,88430.0,88391.0,0.08635336]
[1767106214336,0.01148,88430.0,88400.0,1.95457192]
[1767106214738,0.01148,88430.0,88400.0,1.96588413]
[1767106214987,0.0003712,88438.0,88411.0,1.40386]
[1767106215188,0.0003712,88438.0,88410.0,0.56202285]
[1767106215189,0.00072691,88438.0,88412.0,1.41534]
[1767106215364,0.00072691,88438.0,88420.0,0.55071192]
[1767106215563,0.00072691,88438.0,88416.0,1.40386]
[1767106216129,0.00072691,88438.0,88402.0,0.01131196]
[1767106216429,0.00072691,88438.0,88398.0,0.01131247]
[1767106216430,0.00068729,88446.0,88438.0,0.00031]
[1767106216545,0.00068729,88446.0,88423.0,0.01148]
[1767106216747,0.00068729,88446.0,88423.0,0.01183571]
[1767106217551,0.00068729,88446.0,88423.0,0.01159671]
[1767106217775,0.01046627,88445.0,88423.0,0.01159671]
[1767106218008,0.01046627,88444.0,88423.0,0.01159671]
[1767106218209,0.00068729,88446.0,88423.0,0.01159671]
[1767106218409,0.01046208,88445.0,88423.0,0.01159671]
[1767106218546,0.00068729,88446.0,88423.0,0.01159671]
[1767106218776,0.01046208,88445.0,88423.0,0.01159671]
[1767106218983,0.00068729,88446.0,88423.0,0.01159671]
[1767106219188,0.00068729,88446.0,88430.0,0.01130837]
[1767106219548,0.01148,88457.0,88446.0,0.000549]
[1767106219847,0.01148,88457.0,88430.0,1.41958336]
[1767106220356,0.01130071,88490.0,88430.0,1.41958336]
[1767106220357,0.001,88491.0,88458.0,1.36523]
[1767106220495,0.001,88491.0,88436.0,0.01130761]
[1767106220496,0.0104469,88490.0,88443.0,1.36523]
[1767106220694,0.001,88491.0,88443.0,1.36523]
[1767106220695,0.0219669,88489.0,88443.0,1.36523]
[1767106220895,0.0104469,88488.0,88444.0,0.02282658]
[1767106221133,0.0104469,88488.0,88444.0,0.06587336]
[1767106221501,0.01130109,88487.0,88443.0,1.36523]
[1767106221714,0.06695201,88488.0,88417.0,0.05655007]
[1767106221715,0.000378,88444.0,88417.0,1.36523]
[1767106221887,0.03746,88474.0,88421.0,0.02282953]
[1767106222090,0.01250069,88505.0,88421.0,0.02282953]
[1767106222091,0.01044098,88473.0,88440.0,0.55071192]
[1767106222291,0.04528,88478.0,88440.0,0.55071192]
[1767106222292,0.04528,88478.0,88441.0,1.37675]
[1767106222616,0.01043693,88477.0,88441.0,1.37675]
[1767106222892,0.01054362,88477.0,88441.0,1.36523]
[1767106223037,0.01043693,88476.0,88439.0,0.01152]
[1767106223678,0.01043693,88476.0,88439.0,0.02282722]
[1767106223886,0.01152,88476.0,88450.0,0.55071192]
[1767106224085,0.00010669,88477.0,88451.0,0.01152]
[1767106224290,0.00010669,88477.0,88457.0,0.01130492]
[1767106224509,0.00010669,88477.0,88452.0,0.06804719]
[1767106224686,0.00010669,88477.0,88454.0,0.05435336]
[1767106224852,0.00010669,88477.0,88452.0,0.01152]
[1767106225316,0.00010669,88477.0,88460.0,0.55071192]
[1767106225509,0.00010669,88477.0,88440.0,0.05435336]
[1767106225510,0.000378,88460.0,88440.0,0.05435336]
[1767106225710,0.00010669,88477.0,88450.0,0.55071192]
[1767106225945,0.001,88491.0,88467.0,0.55071192]
[1767106226218,0.001,88491.0,88477.0,0.000106]
[1767106226418,0.001,88491.0,88457.0,0.01152]
[1767106226572,0.00110661,88491.0,88457.0,0.01152]
[1767106226778,0.00110661,88491.0,88460.0,0.55071192]
[1767106227092,0.01042075,88490.0,88451.0,0.01152]
[1767106227294,0.00110661,88491.0,88462.0,0.05435336]
[1767106227494,0.00110661,88491.0,88470.0,0.55071192]
[1767106227692,0.00066361,88491.0,88470.0,0.01130326]
[1767106227871,0.00066361,88491.0,88463.0,1.37675]
[1767106228513,0.00066361,88491.0,88470.0,0.55071192]
[1767106228712,0.00066361,88491.0,88463.0,1.37675]
[1767106229158,0.00066361,88491.0,88463.0,1.36523]
[1767106229328,0.000549,88463.0,88451.0,0.01130569]
[1767106229529,0.03850361,88491.0,88453.0,0.01130543]
[1767106229530,0.038397,88491.0,88453.0,0.01130543]
[1767106229687,0.038397,88491.0,88460.0,0.55071192]
[1767106229688,0.05676,88490.0,88460.0,0.55071192]
[1767106229891,0.05676,88490.0,88458.0,0.01152]
[1767106230076,0.05676,88490.0,88458.0,0.01114]
[1767106230275,0.05676,88490.0,88453.0,0.0002]
[1767106230276,0.03709,88489.0,88453.0,0.0002]
[1767106230479,0.0465307,88488.0,88453.0,0.0002]
[1767106230681,0.03709,88488.0,88445.0,0.01152]
[1767106230906,0.03709,88488.0,88434.0,0.01130786]
[1767106230907,0.0002,88459.0,88439.0,0.0002]
[1767106231103,0.02548,88483.0,88439.0,0.0002]
[1767106231104,0.02548,88483.0,88439.0,0.01150722]
[1767106231301,0.02548,88483.0,88442.0,0.01130684]
[1767106231302,0.06718307,88482.0,88442.0,0.01130684]
[1767106231522,0.05676,88482.0,88440.0,0.55071192]
[1767106231679,0.064984,88482.0,88439.0,0.0002]
[1767106231889,0.05650355,88490.0,88488.0,77.11588183]
[1767106232085,0.05650355,88490.0,88488.0,76.2789214]
[1767106232086,3.63112086,88489.0,88488.0,76.2789214]
[1767106232285,0.09215386,88489.0,88488.0,72.14832785]
[1767106232491,0.13867053,88489.0,88488.0,68.09274826]
[1767106232687,0.13867053,88489.0,88488.0,63.17085391]
[1767106232944,0.13867053,88489.0,88488.0,62.77331391]
[1767106232945,0.05389386,88489.0,88488.0,62.77331391]
[1767106233134,0.33305386,88489.0,88488.0,62.77160244]
[1767106233390,0.05389386,88489.0,88488.0,62.77160244]
[1767106233592,0.11065386,88489.0,88488.0,62.57000245]
[1767106233850,0.12265386,88489.0,88488.0,62.4745279]
[1767106234051,0.17915805,88489.0,88488.0,61.53942094]
[1767106234255,0.17915805,88489.0,88488.0,54.28658867]
[1767106234594,0.20929866,88489.0,88488.0,47.16186705]
[1767106234801,0.34729589,88489.0,88488.0,40.74159657]
[1767106235093,0.30205589,88489.0,88488.0,33.85565079]
[1767106235296,0.30205589,88489.0,88488.0,27.87465738]
[1767106235492,0.22759589,88489.0,88488.0,27.74981738]
[1767106235628,0.22759589,88489.0,88488.0,27.3923414]
[1767106235828,0.22759589,88489.0,88488.0,27.32775843]
[1767106236098,0.22759589,88489.0,88488.0,26.99944735]
[1767106236274,0.22759589,88489.0,88488.0,26.77218547]
[1767106236471,0.22765858,88489.0,88488.0,26.73169173]
[1767106236666,0.22765858,88489.0,88488.0,26.5899864]
[1767106236888,0.22765858,88489.0,88488.0,26.5411181]
[1767106237089,0.22765858,88489.0,88488.0,23.1444981]
[1767106237295,0.17115439,88489.0,88488.0,23.0439181]
[1767106237598,0.12271655,88489.0,88488.0,22.9517581]
[1767106237825,0.12271655,88489.0,88488.0,22.77610327]
[1767106238304,0.12271655,88489.0,88488.0,21.31420327]
[1767106238509,0.12271655,88489.0,88488.0,21.28445296]
[1767106238834,0.1429093,88489.0,88488.0,21.28445296]
[1767106239424,0.1429093,88489.0,88488.0,20.70439053]
[1767106239654,0.1429093,88489.0,88488.0,20.44732586]
[1767106239810,0.1429093,88489.0,88488.0,20.21428938]
[1767106240015,0.01014604,88489.0,88488.0,19.96981091]
[1767106240192,0.02166604,88489.0,88488.0,19.96981091]
[1767106240876,0.02166604,88489.0,88488.0,19.8840004]
[1767106241083,0.02166604,88489.0,88488.0,19.59874574]
[1767106241524,0.02166604,88489.0,88488.0,19.07391555]
[1767106241697,0.03288378,88489.0,88488.0,18.87526222]
[1767106242041,0.04488378,88489.0,88488.0,18.36394996]
[1767106242442,0.02937596,88489.0,88488.0,17.97274996]
[1767106242601,0.01815822,88489.0,88488.0,17.82354996]
[1767106242805,0.01815822,88489.0,88488.0,13.00452637]
[1767106243013,0.01815822,88489.0,88488.0,12.43919907]
[1767106243366,0.01815822,88489.0,88488.0,12.38878456]
[1767106243569,0.01815822,88489.0,88488.0,12.3390366]
[1767106243687,0.01815822,88489.0,88488.0,12.30020559]
[1767106243688,0.02627276,88489.0,88488.0,12.30020559]
[1767106243895,0.02627276,88489.0,88488.0,12.26260559]
[1767106244097,0.02627276,88489.0,88488.0,7.09075761]
[1767106244298,0.09168876,88489.0,88488.0,1.32152447]
[1767106244557,0.09168876,88489.0,88424.0,0.01152]
[1767106244558,5.05,88487.0,88424.0,0.01152]
[1767106244760,0.023614,88414.0,88412.0,0.04524]
[1767106244963,0.01130492,88457.0,88412.0,0.04524]
[1767106244964,0.02194512,88417.0,88414.0,0.001099]
[1767106245204,0.02174512,88417.0,88413.0,0.0034]
[1767106245411,0.0002,88449.0,88413.0,0.0034]
[1767106245821,0.012,88465.0,88413.0,0.0034]
[1767106245938,0.012,88465.0,88413.0,0.00375571]
[1767106246145,0.0002,88459.0,88439.0,0.0002]
[1767106246340,0.012,88465.0,88440.0,0.01072]
[1767106246611,0.012,88465.0,88439.0,0.0002]
[1767106246612,0.012,88474.0,88441.0,0.01152]
[1767106246833,0.012,88465.0,88441.0,0.01152]
[1767106247005,0.012,88465.0,88441.0,0.00415892]
[1767106247211,0.22605766,88473.0,88439.0,0.0002]
[1767106247212,0.06852086,88463.0,88439.0,0.0002]
[1767106247394,0.01130428,88462.0,88439.0,0.0002]
[1767106247590,0.02330416,88463.0,88439.0,0.0002]
[1767106247591,0.02341073,88463.0,88439.0,0.0002]
[1767106248330,0.01210657,88463.0,88439.0,0.0002]
[1767106250810,0.01130454,88460.0,88439.0,0.0002]
[1767106251010,0.02227561,88459.0,88439.0,0.0002]
[1767106251216,0.012,88459.0,88439.0,0.0002]
[1767106252134,0.01210657,88463.0,88439.0,0.0002]
[1767106252353,0.04051448,88486.0,88463.0,4.243e-05]
[1767106252574,0.012,88483.0,88455.0,1e-08]
[1767106252805,0.012,88483.0,88455.0,0.00035572]
[1767106253445,0.012,88483.0,88455.0,1e-08]
[1767106253847,0.012,88483.0,88453.0,1e-08]
[1767106254096,0.012,88483.0,88453.0,0.00035636]
[1767106254297,0.01053228,88475.0,88453.0,0.00035636]
[1767106254474,0.01053228,88474.0,88453.0,0.00035636]
[1767106254623,0.01053228,88473.0,88453.0,0.00035636]
[1767106254813,0.01053228,88472.0,88453.0,0.00035636]
[1767106255008,0.01053228,88471.0,88453.0,0.00035636]
[1767106255249,0.01053228,88470.0,88453.0,0.00035636]
[1767106255448,0.01152,88485.0,88453.0,0.00035636]
[1767106255449,0.01053228,88469.0,88453.0,0.00035636]
[1767106255656,0.01031203,88468.0,88453.0,0.00035636]
[1767106255913,0.01152,88485.0,88453.0,0.00035636]
[1767106256115,0.00811454,88489.0,88453.0,0.00035636]
[1767106256311,0.00811454,88489.0,88454.0,0.05510683]
[1767106256527,0.012,88488.0,88454.0,0.05510683]
[1767106256725,0.012,88488.0,88453.0,0.00035636]
[1767106257200,0.012,88488.0,88454.0,0.01152]
[1767106257398,0.012,88486.0,88454.0,0.05676]
[1767106257743,0.012,88487.0,88454.0,0.05676]
[1767106257941,0.012,88487.0,88453.0,0.00035635]
[1767106257942,0.0732923,88487.0,88453.0,0.00035635]
[1767106258082,0.04051448,88481.0,88455.0,0.01152]
[1767106258286,0.04051448,88474.0,88455.0,0.0003564]
[1767106258499,0.012,88487.0,88444.0,0.01152]
[1767106258500,0.04051448,88471.0,88444.0,0.01152]
[1767106258702,0.05181825,88466.0,88444.0,0.00035648]
[1767106258933,0.22605745,88474.0,88444.0,0.00035648]
[1767106258934,0.04051448,88456.0,88444.0,0.00035648]
[1767106259149,0.012,88455.0,88439.0,0.0002]
[1767106259372,0.04051448,88461.0,88432.0,0.01152]
[1767106259581,0.0002,88449.0,88432.0,0.01152]
[1767106259783,0.0002,88449.0,88429.0,0.0002]
[1767106259990,0.0002,88449.0,88430.0,0.01152]
[1767106260403,0.0002,88449.0,88430.0,0.017216]
[1767106260632,0.0002,88449.0,88429.0,0.0002]
[1767106260860,0.0002,88449.0,88430.0,0.01152]
[1767106262110,0.0002,88449.0,88430.0,0.55487169]
[1767106262530,0.0002,88449.0,88430.0,0.00415977]
[1767106262933,0.0002,88449.0,88410.0,0.83562561]
[1767106262934,0.0002,88449.0,88431.0,0.05106]
[1767106263135,0.0002,88449.0,88406.0,1.35365]
[1767106263351,0.0002,88449.0,88410.0,0.80559322]
[1767106263767,0.0002,88449.0,88420.0,0.80559322]
[1767106264034,0.05650419,88489.0,88488.0,96.20575879]
[1767106264237,0.11326419,88489.0,88488.0,95.58591206]
[1767106264445,0.05676,88489.0,88488.0,95.2837136]
[1767106264644,0.00680602,88489.0,88488.0,95.27721471]
[1767106264903,0.0005792,88508.0,88488.0,95.25688723]
[1767106265326,0.0005792,88508.0,88488.0,95.24217272]
[1767106266073,0.0005792,88508.0,88488.0,95.25393501]
[1767106266336,0.0005792,88508.0,88488.0,95.24211785]
[1767106266803,11.01472181,88500.0,88488.0,95.24211785]
[1767106267008,0.11424524,88499.0,88488.0,95.24211785]
[1767106267613,0.01055761,88498.0,88488.0,95.24335966]
[1767106267791,0.11424524,88499.0,88488.0,95.16960752]
[1767106267792,0.012,88496.0,88488.0,95.16960752]
[1767106268133,0.01055761,88495.0,88488.0,95.15121268]
[1767106268292,0.012,88496.0,88488.0,95.15121268]
[1767106268293,0.01055761,88494.0,88488.0,95.15121268]
[1767106268496,0.01055761,88493.0,88488.0,95.10308746]
[1767106268698,0.01055761,88492.0,88488.0,95.10308746]
[1767106268925,0.01055761,88491.0,88488.0,95.10308746]
[1767106269130,0.12576524,88499.0,88488.0,95.10304416]
[1767106269131,0.012,88498.0,88488.0,95.10304416]
[1767106270278,0.012,88499.0,88488.0,95.10304416]
[1767106270471,0.01055235,88498.0,88488.0,95.10304416]
[1767106270666,0.012,88496.0,88488.0,95.10300298]
[1767106270871,0.01055235,88495.0,88488.0,95.10300298]
[1767106271073,0.01055235,88494.0,88488.0,95.10300298]
[1767106271251,0.01055235,88493.0,88488.0,95.10300298]
[1767106271457,0.01067065,88496.0,88488.0,95.08828685]
[1767106271861,11.01472181,88500.0,88488.0,95.08828685]
[1767106272658,11.01472181,88500.0,88489.0,0.01148]
[1767106273581,11.01472181,88500.0,88489.0,0.01118284]
[1767106274010,11.01472181,88500.0,88488.0,95.08828685]
[1767106274162,11.01472181,88500.0,88489.0,0.01148]
[1767106274361,11.01472181,88500.0,88489.0,0.00044488]
[1767106274566,11.01472181,88500.0,88488.0,95.08828685]
[1767106274567,11.01472181,88500.0,88488.0,95.06607813]
[1767106274806,11.01472181,88500.0,88488.0,95.02005206]
[1767106274807,0.012,88498.0,88488.0,95.02005206]
[1767106274983,0.12572524,88499.0,88488.0,94.96346778]
[1767106274984,0.012,88495.0,88488.0,94.96346778]
[1767106275181,0.012,88495.0,88488.0,94.92952298]
[1767106276083,0.01248,88496.0,88488.0,94.92952298]
[1767106276872,0.05150648,88497.0,88488.0,94.92952298]
[1767106277070,0.05150648,88497.0,88488.0,94.92216578]
[1767106277371,0.04978591,88497.0,88488.0,94.92216578]
[1767106277778,0.04201607,88497.0,88488.0,94.92216578]
[1767106277905,0.04201607,88497.0,88489.0,0.10705612]
[1767106277906,0.03313689,88497.0,88489.0,0.10705612]
[1767106278278,0.03313689,88497.0,88490.0,0.01148]
[1767106278765,11.01472181,88500.0,88490.0,0.0108568]
[1767106279064,11.01472181,88500.0,88488.0,94.92216578]
[1767106279065,11.01472181,88500.0,88491.0,0.01148]
[1767106279308,0.11424524,88499.0,88488.0,94.73504116]
[1767106279498,0.11424524,88499.0,88489.0,0.01148]
[1767106279659,11.01472181,88500.0,88488.0,94.73504116]
[1767106279855,11.01472181,88500.0,88488.0,94.6926196]
[1767106280061,0.012,88499.0,88488.0,94.67790443]
[1767106280400,0.012,88499.0,88488.0,94.67731024]
[1767106281485,0.01671334,88499.0,88488.0,94.58050715]
[1767106281682,0.0244941,88498.0,88488.0,94.46645437]
[1767106281861,0.012,88499.0,88488.0,94.4440055]
[1767106282453,0.012,88499.0,88488.0,94.2393355]
[1767106282654,0.12572524,88498.0,88488.0,94.2393355]
[1767106282872,0.11424524,88498.0,88488.0,94.2163755]
[1767106283075,0.012,88499.0,88488.0,94.2163755]
[1767106283076,0.01148,88497.0,88488.0,94.2163755]
[1767106283300,0.012,88499.0,88488.0,94.2163755]
[1767106283498,0.012,88495.0,88488.0,94.2163755]
[1767106283818,0.01055373,88494.0,88488.0,94.2163755]
[1767106283977,0.01055373,88493.0,88488.0,94.2163755]
[1767106284167,0.01055373,88492.0,88488.0,94.2163755]
[1767106284363,0.01055373,88491.0,88488.0,94.19345851]
[1767106284563,0.01055373,88490.0,88488.0,94.18197851]
[1767106284763,0.012,88495.0,88488.0,94.18197851]
[1767106284764,0.01055373,88489.0,88488.0,94.18197851]
[1767106285119,0.02255498,88489.0,88488.0,94.18197851]
[1767106285329,0.00123905,88489.0,88488.0,94.18157852]
[1767106285632,0.01148,88497.0,88488.0,94.18157852]
[1767106285842,0.11424524,88496.0,88488.0,94.14868478]
[1767106286039,0.11424524,88496.0,88488.0,94.13396846]
[1767106286381,0.00471334,88495.0,88488.0,94.08865253]
[1767106286582,0.02678989,88494.0,88488.0,94.08865253]
[1767106286781,0.02678989,88494.0,88488.0,93.85712584]
[1767106287029,0.11424524,88493.0,88488.0,93.79323939]
[1767106287179,0.012,88492.0,88488.0,93.74404702]
[1767106287382,0.012,88492.0,88488.0,93.7202132]
[1767106287618,0.012,88492.0,88488.0,93.66363666]
[1767106287819,0.012,88489.0,88488.0,93.33608254]
[1767106288047,0.012,88489.0,88488.0,93.24535929]
[1767106288048,0.11017691,88489.0,88488.0,93.24535929]
[1767106288261,0.10348714,88489.0,88488.0,93.17841645]
[1767106288470,0.09873186,88489.0,88488.0,93.17841645]
[1767106288594,0.04201186,88489.0,88488.0,93.17841645]
[1767106288791,0.01148,88489.0,88488.0,92.98737645]
[1767106288994,0.01148,88489.0,88488.0,92.8732161]
[1767106289208,0.01148,88489.0,88488.0,92.83835911]
[1767106289418,0.01148,88489.0,88488.0,92.79409938]
[1767106289613,0.01148,88489.0,88488.0,92.77102795]
[1767106289872,0.03309665,88489.0,88488.0,92.55605639]
[1767106290046,0.04509665,88489.0,88488.0,92.46421639]
[1767106290254,0.04509665,88489.0,88488.0,92.45273639]
[1767106290824,0.04509665,88489.0,88488.0,92.41829642]
[1767106291086,0.03361665,88489.0,88488.0,92.39865325]
[1767106291324,0.04266758,88489.0,88488.0,92.39865325]
[1767106291522,0.10126038,88512.0,88488.0,92.39865325]
[1767106291523,0.08097879,88510.0,88488.0,92.39865325]
[1767106291698,0.08271399,88513.0,88488.0,92.38025802]
[1767106292124,0.0017352,88513.0,88488.0,92.35818427]
[1767106292340,0.08097879,88512.0,88488.0,92.35658427]
[1767106292534,0.00063,88499.0,88488.0,92.35618425]
[1767106292650,0.00063,88498.0,88488.0,92.35618425]
[1767106293056,0.00063,88498.0,88488.0,92.2428735]
[1767106293373,0.01263,88498.0,88488.0,92.2428735]
[1767106293691,0.00063,88490.0,88488.0,92.18629312]
[1767106294317,0.012,88498.0,88488.0,92.18629312]
[1767106294515,0.012,88498.0,88488.0,92.17525552]
[1767106294719,11.01472181,88500.0,88488.0,92.17525552]
[1767106294720,0.00063,88495.0,88488.0,92.17525552]
[1767106295732,0.00063,88492.0,88488.0,92.17525552]
[1767106295936,0.00063,88490.0,88488.0,92.17501323]
[1767106296201,0.01148,88490.0,88488.0,91.89956325]
[1767106296406,0.00015,88489.0,88488.0,91.89956325]
[1767106297433,0.01072529,88489.0,88488.0,91.89956325]
[1767106297742,0.01072529,88489.0,88488.0,91.82636652]
[1767106298271,0.01072529,88489.0,88488.0,91.81164918]
[1767106298922,0.00725286,88489.0,88488.0,91.81164918]
[1767106299130,0.00605128,88489.0,88488.0,91.81164918]
[1767106301987,0.00605128,88489.0,88488.0,91.79325358]
[1767106303297,0.001,88501.0,88488.0,91.90749882]
[1767106303298,10.9787883,88500.0,88488.0,91.90749882]
[1767106303701,10.9787883,88500.0,88489.0,0.05672]
[1767106303957,10.9787883,88500.0,88489.0,0.11424524]
[1767106304194,10.9787883,88500.0,88490.0,0.05672]
[1767106305325,10.9787883,88500.0,88491.0,0.01148]
[1767106305523,10.9787883,88500.0,88491.0,0.05672]
[1767106306342,10.9547883,88500.0,88491.0,0.05672]
[1767106306536,10.9547883,88500.0,88492.0,0.11424524]
[1767106306738,10.9547883,88500.0,88493.0,0.01148]
[1767106307015,10.9547883,88500.0,88494.0,0.01148001]
[1767106307173,10.9547883,88500.0,88494.0,0.05672]
[1767106307374,10.9547883,88500.0,88488.0,91.79189443]
[1767106307375,10.9547883,88500.0,88495.0,0.01148]
[1767106307587,10.9547883,88500.0,88488.0,91.79189443]
[1767106308041,10.9547883,88500.0,88489.0,0.05672]
[1767106308490,10.9547883,88500.0,88490.0,0.05672]
[1767106308850,10.9547883,88500.0,88490.0,0.05656999]
[1767106309461,10.9547883,88500.0,88494.0,0.0113002]
[1767106309462,2.12875479,88500.0,88494.0,0.0113002]
[1767106309663,1.64350689,88500.0,88497.0,0.06779844]
[1767106309872,0.94934231,88500.0,88497.0,0.06779844]
[1767106310003,0.70957186,88500.0,88499.0,1e-08]
[1767106310204,0.3912277,88500.0,88499.0,0.05649782]
[1767106310403,0.35730307,88500.0,88499.0,0.11325782]
[1767106310605,0.32337844,88500.0,88499.0,0.05676001]
[1767106310828,0.28945381,88500.0,88499.0,0.11325782]
[1767106311034,0.25552918,88500.0,88499.0,1e-08]
[1767106311239,0.22160455,88500.0,88499.0,1e-08]
[1767106311442,0.16367992,88500.0,88499.0,0.05676001]
[1767106311642,0.12975529,88500.0,88499.0,0.05676001]
[1767106311964,0.09583066,88500.0,88499.0,1e-08]
[1767106312141,0.06190603,88500.0,88499.0,0.05676001]
[1767106312342,0.0279814,88500.0,88499.0,0.05676001]
[1767106313073,0.0279814,88500.0,88499.0,1e-08]
[1767106313627,1.5214414,88500.0,88499.0,1e-08]
[1767106313826,1.5214414,88500.0,88499.0,0.01152]
[1767106314498,0.001,88501.0,88488.0,91.79189443]
[1767106314693,0.01219169,88513.0,88490.0,0.80559322]
[1767106314895,0.01152,88521.0,88500.0,0.80559322]
[1767106315095,0.01152,88521.0,88500.0,0.01152]
[1767106315363,1.50498,88521.0,88488.0,91.79189443]
[1767106315534,1.50498,88521.0,88489.0,0.01152]
[1767106316170,1.48194537,88521.0,88488.0,91.79189443]
[1767106316342,1.48032856,88521.0,88490.0,0.04268454]
[1767106316510,1.48032856,88521.0,88491.0,0.01130058]
[1767106316707,1.48032856,88521.0,88488.0,91.79189443]
[1767106316948,1.48032856,88521.0,88489.0,0.01152]
[1767106317147,1.48032856,88521.0,88488.0,91.79189443]
[1767106317368,1.48032856,88521.0,88490.0,0.80559322]
[1767106317548,1.48032856,88521.0,88489.0,0.01152]
[1767106317749,1.48032856,88521.0,88488.0,91.79189443]
[1767106317949,1.48032856,88521.0,88490.0,0.80559322]
[1767106318307,1.48032856,88521.0,88489.0,0.01152]
[1767106318523,1.48032856,88521.0,88490.0,0.80559322]
[1767106319085,1.48032856,88521.0,88491.0,0.01152]
[1767106319568,0.01152,88524.0,88492.0,0.02189293]
[1767106320650,0.01152,88524.0,88499.0,0.01129956]
[1767106320852,0.01152,88524.0,88504.0,0.06779336]
[1767106321046,0.01152,88524.0,88507.0,0.01129854]
[1767106321245,0.01152,88534.0,88515.0,0.01129752]
[1767106321468,0.01152,88534.0,88513.0,0.02259555]
[1767106321697,0.01152,88534.0,88511.0,0.02259555]
[1767106322062,1.42131,88551.0,88515.0,0.01129752]
[1767106322264,0.01175877,88545.0,88516.0,0.02259478]
[1767106322466,0.01175877,88545.0,88516.0,0.02264339]
[1767106323059,0.00023877,88545.0,88520.0,0.8168901]
[1767106323263,0.00023877,88545.0,88522.0,0.06777975]
[1767106323469,0.00023877,88545.0,88530.0,0.0112956]
[1767106323670,0.03450165,88555.0,88533.0,0.01129522]
[1767106323888,0.00043482,88553.0,88535.0,0.01129496]
[1767106324112,0.00043482,88553.0,88532.0,1.48764]
[1767106324297,0.00043482,88553.0,88535.0,0.05647484]
[1767106324614,0.00043482,88553.0,88539.0,0.01129445]
[1767106324750,0.00043482,88553.0,88531.0,0.01152]
[1767106324751,0.0004768,88582.0,88541.0,0.06776519]
[1767106324965,0.0004768,88582.0,88535.0,0.28025236]
[1767106324966,0.0004768,88582.0,88546.0,1.48764]
[1767106325303,0.0004768,88582.0,88536.0,0.05647383]
[1767106325304,0.0452,88579.0,88531.0,1.48764]
[1767106325511,0.01048368,88577.0,88532.0,0.02281535]
[1767106325733,0.0452,88579.0,88532.0,0.01152]
[1767106325734,0.01048368,88576.0,88532.0,0.01152]
[1767106325955,0.0452,88579.0,88534.0,0.01129509]
[1767106325956,0.02200368,88575.0,88534.0,0.01129509]
[1767106326319,0.02200368,88575.0,88532.0,0.01152]
[1767106326321,0.00048527,88575.0,88550.0,0.01129305]
[1767106326496,0.0002,88586.0,88564.0,0.01129126]
[1767106326641,0.00372,88587.0,88564.0,0.00035697]
[1767106326842,0.0005037,88594.0,88571.0,1.48764]
[1767106326843,3.7e-06,88594.0,88571.0,1.48764]
[1767106327070,3.7e-06,88596.0,88571.0,1.48764]
[1767106327269,3.7e-06,88596.0,88567.0,0.01129088]
[1767106327474,3.7e-06,88596.0,88569.0,0.01129063]
[1767106327657,0.0452,88606.0,88576.0,0.01128973]
[1767106327855,0.01047117,88605.0,88578.0,0.01128948]
[1767106328066,0.01047117,88604.0,88570.0,1.48764]
[1767106328303,0.05567117,88603.0,88570.0,1.48764]
[1767106328492,0.01047117,88602.0,88570.0,1.48764]
[1767106328698,0.0452,88603.0,88573.0,1.55328348]
[1767106328907,0.0452,88603.0,88580.0,0.01128923]
[1767106329108,0.0452,88603.0,88573.0,0.05435336]
[1767106329309,0.0452,88603.0,88572.0,1.48764]
[1767106329527,0.0452,88603.0,88550.0,0.1108185]
[1767106329727,0.01045955,88602.0,88551.0,0.01129292]
[1767106329906,0.01045955,88601.0,88565.0,0.01152]
[1767106330115,0.01152,88600.0,88566.0,0.05435336]
[1767106330318,0.01152,88599.0,88565.0,0.01152]
[1767106330496,0.01152,88599.0,88562.0,0.0002]
[1767106330697,0.01045783,88598.0,88565.0,0.01152]
[1767106330920,0.01045783,88597.0,88565.0,0.01152]
[1767106331120,0.01152,88599.0,88562.0,0.0002]
[1767106331471,0.01152,88599.0,88565.0,0.0771645]
[1767106331634,0.01152,88599.0,88570.0,0.0112905]
[1767106331839,0.01152,88599.0,88565.0,0.06587336]
[1767106332103,1.42131,88613.0,88573.0,0.01129012]
[1767106332278,0.0002385,88614.0,88580.0,0.05435336]
[1767106332279,0.06717815,88612.0,88580.0,0.05435336]
[1767106332464,0.01045815,88611.0,88581.0,0.01152]
[1767106332669,0.01152,88610.0,88583.0,0.01128884]
[1767106332870,0.01152,88610.0,88581.0,0.0228091]
[1767106332871,3.7e-06,88624.0,88598.0,1.54199336]
[1767106333090,3.7e-06,88624.0,88613.0,0.01152]
[1767106333288,3.7e-06,88624.0,88597.0,0.01128706]
[1767106333289,0.001099,88613.0,88599.0,0.03851358]
[1767106333491,3.7e-06,88624.0,88600.0,0.01128668]
[1767106333664,3.7e-06,88624.0,88601.0,0.01152]
[1767106333863,3.7e-06,88624.0,88611.0,0.01128528]
[1767106334067,3.7e-06,88624.0,88616.0,0.05435336]
[1767106334266,3.7e-06,88624.0,88611.0,0.01133389]
[1767106334267,3.7e-06,88624.0,88615.0,0.01152]
[1767106334469,3.7e-06,88624.0,88618.0,0.01128438]
[1767106334669,3.7e-06,88624.0,88615.0,0.02280477]
[1767106334670,8e-05,88643.0,88615.0,0.01152]
[1767106335046,8e-05,88643.0,88611.0,4.861e-05]
[1767106335047,8e-05,88643.0,88616.0,0.01152]
[1767106335308,0.51253,88643.0,88611.0,4.861e-05]
[1767106335515,0.51245,88641.0,88611.0,4.861e-05]
[1767106336100,0.51245,88641.0,88568.0,0.05649075]
[1767106336101,0.14078,88639.0,88568.0,0.05649075]
[1767106336314,0.14078,88637.0,88601.0,0.0002]
[1767106336500,0.15120908,88636.0,88601.0,0.0002]
[1767106336701,0.15120908,88636.0,88602.0,0.05435336]
[1767106336702,0.1523,88636.0,88602.0,0.05435336]
[1767106337024,0.1523,88636.0,88601.0,0.0002]
[1767106337025,0.1523,88636.0,88604.0,0.05435336]
[1767106337354,0.1523,88636.0,88601.0,0.0002]
[1767106337487,0.1523,88636.0,88604.0,7.694e-05]
[1767106337690,0.14078,88634.0,88604.0,7.694e-05]
[1767106337914,0.14078,88634.0,88584.0,0.01152]
[1767106338069,0.01152,88636.0,88585.0,0.01811197]
[1767106338070,0.14078,88632.0,88585.0,0.01811197]
[1767106338276,0.14078,88630.0,88586.0,0.07472339]
[1767106338482,0.14078,88630.0,88591.0,0.01128782]
[1767106338704,0.14078,88630.0,88600.0,0.05435336]
[1767106338982,0.14078,88630.0,88587.0,0.01128833]
[1767106339180,0.14078,88630.0,88584.0,0.00010676]
[1767106339379,0.14078,88628.0,88584.0,0.00010676]
[1767106339586,0.14078,88628.0,88590.0,0.00055702]